[Event "Titled Tuesday Blitz December 06 Late 2022"]
[White "Forgacs, Attila Jr."]
[Black "Bongo Akanga Ndjila, Barthelemy"]
[WhiteFideId "773654"]
[BlackFideId "10609431"]
[WhiteElo "2168"]
[BlackElo "1768"]
[Result "0-1"]
[Round "03"]
[TimeControl "180+1"]
[Date "2022.12.07"]
[WhiteClock "0:00:09"]
[BlackClock "0:00:48"]

1. e4 {[%clk 0:03:00]}  c6 {[%clk 0:02:52]} 2. d4 {[%clk 0:03:00]}  d5 {[%clk 0:02:53]} 3. Nc3 {[%clk 0:03:01]}  Nf6 {[%clk 0:02:52]} 4. e5 {[%clk 0:03:00]}  Ng8 {[%clk 0:02:52]} 5. Be3 {[%clk 0:02:55]}  Bf5 {[%clk 0:02:51]} 6. h4 {[%clk 0:02:55]}  h5 {[%clk 0:02:50]} 7. Bd3 {[%clk 0:02:55]}  Bxd3 {[%clk 0:02:50]} 8. Qxd3 {[%clk 0:02:56]}  e6 {[%clk 0:02:50]} 9. Nf3 {[%clk 0:02:54]}  Ne7 {[%clk 0:02:46]} 10. O-O {[%clk 0:02:53]}  Nf5 {[%clk 0:02:45]} 11. Bg5 {[%clk 0:02:52]}  Be7 {[%clk 0:02:45]} 12. Ne2 {[%clk 0:02:48]}  g6 {[%clk 0:02:44]} 13. c4 {[%clk 0:02:46]}  Bxg5 {[%clk 0:02:42]} 14. hxg5 {[%clk 0:02:46]}  Qb6 {[%clk 0:02:42]} 15. b3 {[%clk 0:02:42]}  Qa6 {[%clk 0:02:41]} 16. Rfd1 {[%clk 0:02:31]}  Nd7 {[%clk 0:02:41]} 17. Qc2 {[%clk 0:02:27]}  Nb6 {[%clk 0:02:37]} 18. Rac1 {[%clk 0:02:26]}  O-O {[%clk 0:02:32]} 19. Nh2 {[%clk 0:02:18]}  Kg7 {[%clk 0:02:31]} 20. g4 {[%clk 0:02:18]}  hxg4 {[%clk 0:02:31]} 21. Nxg4 {[%clk 0:02:18]}  Rh8 {[%clk 0:02:30]} 22. f3 {[%clk 0:01:52]}  Rh4 {[%clk 0:02:28]} 23. Kf2 {[%clk 0:01:34]}  Rah8 {[%clk 0:02:20]} 24. Rg1 {[%clk 0:01:26]}  dxc4 {[%clk 0:02:13]} 25. bxc4 {[%clk 0:01:25]}  Qa3 {[%clk 0:02:07]} 26. Qb3 {[%clk 0:01:16]}  Qe7 {[%clk 0:02:05]} 27. Nf6 {[%clk 0:01:00]}  Nxd4 {[%clk 0:01:58]} 28. Nxd4 {[%clk 0:00:58]}  Rxd4 {[%clk 0:01:57]} 29. Rh1 {[%clk 0:00:58]}  Rdh4 {[%clk 0:01:53]} 30. Qb1 {[%clk 0:00:51]}  Qc5+ {[%clk 0:01:52]} 31. Kg2 {[%clk 0:00:42]}  Qxe5 {[%clk 0:01:48]} 32. Ng4 {[%clk 0:00:39]}  Qe2+ {[%clk 0:01:46]} 33. Nf2 {[%clk 0:00:37]}  Nxc4 {[%clk 0:01:41]} 34. Rxc4 {[%clk 0:00:14]}  Qxc4 {[%clk 0:01:33]} 35. Rxh4 {[%clk 0:00:12]}  Qxh4 {[%clk 0:01:30]} 36. Qb2+ {[%clk 0:00:12]}  Kg8 {[%clk 0:01:29]} 37. Qxb7 {[%clk 0:00:11]}  Qxg5+ {[%clk 0:01:28]} 38. Kf1 {[%clk 0:00:11]}  Qc1+ {[%clk 0:01:26]} 39. Kg2 {[%clk 0:00:11]}  Qg5+ {[%clk 0:01:21]} 40. Kf1 {[%clk 0:00:11]}  Qb5+ {[%clk 0:01:12]} 41. Qxb5 {[%clk 0:00:10]}  cxb5 {[%clk 0:01:13]} 42. Ne4 {[%clk 0:00:10]}  Rh2 {[%clk 0:01:12]} 43. Nd6 {[%clk 0:00:10]}  a6 {[%clk 0:01:10]} 44. Nb7 {[%clk 0:00:09]}  Rxa2 {[%clk 0:01:09]} 45. Nc5 {[%clk 0:00:09]}  b4 {[%clk 0:01:07]} 46. Nd7 {[%clk 0:00:10]}  Kg7 {[%clk 0:01:06]} 47. Nc5 {[%clk 0:00:10]}  a5 {[%clk 0:01:05]} 48. Ke1 {[%clk 0:00:09]}  b3 {[%clk 0:01:05]} 49. Kd1 {[%clk 0:00:10]}  a4 {[%clk 0:01:05]} 50. Kc1 {[%clk 0:00:10]}  Rc2+ {[%clk 0:00:53]} 51. Kb1 {[%clk 0:00:10]}  Rxc5 {[%clk 0:00:52]} 52. f4 {[%clk 0:00:11]}  a3 {[%clk 0:00:51]} 53. f5 {[%clk 0:00:09]}  gxf5 {[%clk 0:00:49]} 54. Ka1 {[%clk 0:00:09]}  Rc1# {[%clk 0:00:48]} 0-1


[Site "https://www.chess.com"]

[Event "Titled Tuesday Blitz December 06 Late 2022"]
[White "Goltsev, Dmitry"]
[Black "Bortnyk, Olexandr"]
[WhiteFideId "24176710"]
[BlackFideId "14120828"]
[WhiteElo "2327"]
[BlackElo "2723"]
[Result "0-1"]
[Round "03"]
[TimeControl "180+1"]
[Date "2022.12.06"]
[WhiteClock "0:00:45"]
[BlackClock "0:00:22"]

1. e4 {[%clk 0:02:59]}  Nf6 {[%clk 0:02:59]} 2. e5 {[%clk 0:03:00]}  Nd5 {[%clk 0:02:59]} 3. c4 {[%clk 0:03:00]}  Nb6 {[%clk 0:03:00]} 4. d4 {[%clk 0:03:00]}  d6 {[%clk 0:03:00]} 5. exd6 {[%clk 0:03:00]}  exd6 {[%clk 0:03:01]} 6. Nc3 {[%clk 0:03:00]}  Be7 {[%clk 0:03:02]} 7. Nf3 {[%clk 0:03:00]}  O-O {[%clk 0:03:02]} 8. Bd3 {[%clk 0:03:01]}  Bg4 {[%clk 0:03:02]} 9. h3 {[%clk 0:02:59]}  Bh5 {[%clk 0:03:03]} 10. O-O {[%clk 0:02:59]}  Nc6 {[%clk 0:03:03]} 11. Be3 {[%clk 0:02:57]}  Bf6 {[%clk 0:03:02]} 12. g4 {[%clk 0:02:53]}  Bg6 {[%clk 0:03:02]} 13. Bxg6 {[%clk 0:02:54]}  fxg6 {[%clk 0:03:02]} 14. Qd3 {[%clk 0:02:54]}  Qd7 {[%clk 0:02:52]} 15. Nd2 {[%clk 0:02:47]}  Rae8 {[%clk 0:02:50]} 16. a3 {[%clk 0:02:44]}  h5 {[%clk 0:02:25]} 17. Qxg6 {[%clk 0:02:35]}  Bxd4 {[%clk 0:02:20]} 18. Bxd4 {[%clk 0:02:32]}  Nxd4 {[%clk 0:02:20]} 19. Rae1 {[%clk 0:02:21]}  hxg4 {[%clk 0:02:17]} 20. Qxg4 {[%clk 0:02:18]}  Qxg4+ {[%clk 0:01:42]} 21. hxg4 {[%clk 0:02:19]}  Rxe1 {[%clk 0:01:28]} 22. Rxe1 {[%clk 0:02:20]}  Nf3+ {[%clk 0:01:28]} 23. Nxf3 {[%clk 0:02:19]}  Rxf3 {[%clk 0:01:29]} 24. Re8+ {[%clk 0:02:04]}  Kf7 {[%clk 0:01:25]} 25. Rb8 {[%clk 0:02:03]}  Rf4 {[%clk 0:01:18]} 26. Rxb7 {[%clk 0:02:01]}  Rxg4+ {[%clk 0:01:12]} 27. Kf1 {[%clk 0:02:01]}  Rxc4 {[%clk 0:01:10]} 28. Rxa7 {[%clk 0:02:01]}  Ke6 {[%clk 0:01:07]} 29. Ke2 {[%clk 0:01:52]}  g5 {[%clk 0:01:03]} 30. Kd3 {[%clk 0:01:48]}  d5 {[%clk 0:00:53]} 31. Nb5 {[%clk 0:01:43]}  Na4 {[%clk 0:00:26]} 32. Nxc7+ {[%clk 0:01:32]}  Ke5 {[%clk 0:00:26]} 33. Ra5 {[%clk 0:01:05]}  Nxb2+ {[%clk 0:00:25]} 34. Kd2 {[%clk 0:01:01]}  Rxc7 {[%clk 0:00:26]} 35. Ke2 {[%clk 0:00:55]}  Rc2+ {[%clk 0:00:25]} 36. Kf3 {[%clk 0:00:55]}  Nd1 {[%clk 0:00:25]} 37. Kg4 {[%clk 0:00:53]}  Nxf2+ {[%clk 0:00:25]} 38. Kxg5 {[%clk 0:00:53]}  Ne4+ {[%clk 0:00:25]} 39. Kg4 {[%clk 0:00:53]}  Rg2+ {[%clk 0:00:24]} 40. Kf3 {[%clk 0:00:53]}  Rg3+ {[%clk 0:00:25]} 41. Ke2 {[%clk 0:00:53]}  Rb3 {[%clk 0:00:25]} 42. a4 {[%clk 0:00:52]}  Kd4 {[%clk 0:00:25]} 43. Ra8 {[%clk 0:00:51]}  Rb2+ {[%clk 0:00:25]} 44. Kd1 {[%clk 0:00:51]}  Kd3 {[%clk 0:00:24]} 45. Kc1 {[%clk 0:00:51]}  Rc2+ {[%clk 0:00:25]} 46. Kd1 {[%clk 0:00:50]}  Ra2 {[%clk 0:00:25]} 47. Rc8 {[%clk 0:00:45]}  Ra1+ {[%clk 0:00:22]} 0-1


[Site "https://www.chess.com"]

[Event "Titled Tuesday Blitz December 06 Late 2022"]
[White "Grot, Blazej"]
[Black "Melikyan, Gnel"]
[WhiteFideId "21835845"]
[BlackFideId "54109990"]
[WhiteElo "1823"]
[BlackElo "2138"]
[Result "0-1"]
[Round "03"]
[TimeControl "180+1"]
[Date "2022.12.07"]
[WhiteClock "0:00:01"]
[BlackClock "0:00:06"]

1. e4 {[%clk 0:03:00]}  a5 {[%clk 0:02:57]} 2. d4 {[%clk 0:03:00]}  e6 {[%clk 0:02:55]} 3. Bd3 {[%clk 0:03:00]}  d5 {[%clk 0:02:48]} 4. exd5 {[%clk 0:02:45]}  exd5 {[%clk 0:02:41]} 5. h3 {[%clk 0:02:45]}  Nf6 {[%clk 0:02:32]} 6. Nf3 {[%clk 0:02:45]}  Bd6 {[%clk 0:02:17]} 7. O-O {[%clk 0:02:43]}  O-O {[%clk 0:02:01]} 8. Bg5 {[%clk 0:02:42]}  h6 {[%clk 0:01:53]} 9. Bh4 {[%clk 0:02:39]}  c6 {[%clk 0:01:44]} 10. c4 {[%clk 0:02:38]}  dxc4 {[%clk 0:01:37]} 11. Bxc4 {[%clk 0:02:39]}  Bf5 {[%clk 0:01:38]} 12. Nc3 {[%clk 0:02:36]}  Nbd7 {[%clk 0:01:28]} 13. d5 {[%clk 0:02:35]}  Ne5 {[%clk 0:01:15]} 14. Nxe5 {[%clk 0:02:29]}  Bxe5 {[%clk 0:01:16]} 15. dxc6 {[%clk 0:02:29]}  Qxd1 {[%clk 0:01:11]} 16. Raxd1 {[%clk 0:02:25]}  bxc6 {[%clk 0:01:10]} 17. Rfe1 {[%clk 0:02:22]}  Rfe8 {[%clk 0:00:52]} 18. Re3 {[%clk 0:01:46]}  g5 {[%clk 0:00:35]} 19. Bg3 {[%clk 0:01:44]}  Bxg3 {[%clk 0:00:28]} 20. Rxg3 {[%clk 0:01:44]}  Be6 {[%clk 0:00:29]} 21. Bxe6 {[%clk 0:01:41]}  Rxe6 {[%clk 0:00:29]} 22. Rgd3 {[%clk 0:01:38]}  Kg7 {[%clk 0:00:24]} 23. Rd6 {[%clk 0:01:35]}  Rxd6 {[%clk 0:00:19]} 24. Rxd6 {[%clk 0:01:36]}  Ra6 {[%clk 0:00:19]} 25. b3 {[%clk 0:01:30]}  Ne8 {[%clk 0:00:12]} 26. Rd8 {[%clk 0:01:29]}  Nc7 {[%clk 0:00:12]} 27. Na4 {[%clk 0:01:28]}  Ne6 {[%clk 0:00:11]} 28. Rd6 {[%clk 0:01:27]}  Kf6 {[%clk 0:00:11]} 29. Nc5 {[%clk 0:01:26]}  Ra7 {[%clk 0:00:08]} 30. Rxc6 {[%clk 0:01:24]}  Ke7 {[%clk 0:00:07]} 31. Ne4 {[%clk 0:01:10]}  Rd7 {[%clk 0:00:07]} 32. Kh2 {[%clk 0:01:05]}  Rd4 {[%clk 0:00:07]} 33. Nc3 {[%clk 0:00:58]}  Rd2 {[%clk 0:00:07]} 34. Kg3 {[%clk 0:00:48]}  Nd4 {[%clk 0:00:07]} 35. Rc5 {[%clk 0:00:44]}  Rd3+ {[%clk 0:00:04]} 36. Kh2 {[%clk 0:00:33]}  f5 {[%clk 0:00:03]} 37. Nb5 {[%clk 0:00:18]}  Ne6 {[%clk 0:00:02]} 38. Rxf5 {[%clk 0:00:18]}  Rd2 {[%clk 0:00:03]} 39. a4 {[%clk 0:00:17]}  Rb2 {[%clk 0:00:01]} 40. Re5 {[%clk 0:00:17]}  Kf6 {[%clk 0:00:02]} 41. Re3 {[%clk 0:00:16]}  Nc5 {[%clk 0:00:03]} 42. Rf3+ {[%clk 0:00:15]}  Kg6 {[%clk 0:00:03]} 43. Nd4 {[%clk 0:00:14]}  Rd2 {[%clk 0:00:03]} 44. Nc6 {[%clk 0:00:13]}  Ne4 {[%clk 0:00:03]} 45. Ne5+ {[%clk 0:00:13]}  Kg7 {[%clk 0:00:03]} 46. Rf7+ {[%clk 0:00:13]}  Kg8 {[%clk 0:00:04]} 47. f3 {[%clk 0:00:12]}  Nc5 {[%clk 0:00:04]} 48. Rc7 {[%clk 0:00:10]}  Nxb3 {[%clk 0:00:04]} 49. Ng6 {[%clk 0:00:09]}  Nd4 {[%clk 0:00:05]} 50. Ne7+ {[%clk 0:00:09]}  Kf7 {[%clk 0:00:05]} 51. Nf5+ {[%clk 0:00:09]}  Kg6 {[%clk 0:00:05]} 52. Rd7 {[%clk 0:00:03]}  Nxf3+ {[%clk 0:00:05]} 53. Kg3 {[%clk 0:00:02]}  Rxd7 {[%clk 0:00:06]} 54. Ne3 {[%clk 0:00:01]}  Ne5 {[%clk 0:00:06]} 0-1


[Site "https://www.chess.com"]

[Event "Titled Tuesday Blitz December 06 Late 2022"]
[White "Harshavardhan G B"]
[Black "Jobava, Baadur"]
[WhiteFideId "25059009"]
[BlackFideId "13601520"]
[WhiteElo "2323"]
[BlackElo "2582"]
[Result "0-1"]
[Round "03"]
[TimeControl "180+1"]
[Date "2022.12.06"]
[WhiteClock "0:00:02"]
[BlackClock "0:00:05"]

1. e4 {[%clk 0:03:00]}  d6 {[%clk 0:02:58]} 2. d4 {[%clk 0:02:58]}  Nf6 {[%clk 0:02:59]} 3. Nc3 {[%clk 0:02:49]}  e5 {[%clk 0:02:58]} 4. Nf3 {[%clk 0:02:48]}  Nbd7 {[%clk 0:02:59]} 5. Bc4 {[%clk 0:02:45]}  Be7 {[%clk 0:02:59]} 6. O-O {[%clk 0:02:43]}  O-O {[%clk 0:02:58]} 7. Re1 {[%clk 0:02:43]}  h6 {[%clk 0:02:56]} 8. h3 {[%clk 0:02:40]}  c6 {[%clk 0:02:55]} 9. a4 {[%clk 0:02:39]}  Re8 {[%clk 0:02:55]} 10. Be3 {[%clk 0:02:37]}  a5 {[%clk 0:02:55]} 11. Bb3 {[%clk 0:02:27]}  Bf8 {[%clk 0:02:45]} 12. Qd2 {[%clk 0:02:15]}  Qc7 {[%clk 0:02:41]} 13. Rad1 {[%clk 0:02:12]}  Nb6 {[%clk 0:02:24]} 14. Nh4 {[%clk 0:01:51]}  Be6 {[%clk 0:02:17]} 15. dxe5 {[%clk 0:01:42]}  dxe5 {[%clk 0:02:15]} 16. Bxe6 {[%clk 0:01:40]}  Rxe6 {[%clk 0:02:16]} 17. Qe2 {[%clk 0:01:31]}  g6 {[%clk 0:02:05]} 18. g4 {[%clk 0:01:14]}  Nbd7 {[%clk 0:02:04]} 19. g5 {[%clk 0:01:08]}  hxg5 {[%clk 0:02:03]} 20. Bxg5 {[%clk 0:01:09]}  Nh5 {[%clk 0:01:48]} 21. Qg4 {[%clk 0:01:03]}  Ndf6 {[%clk 0:01:47]} 22. Qf3 {[%clk 0:00:51]}  Rae8 {[%clk 0:01:43]} 23. Ne2 {[%clk 0:00:46]}  Nh7 {[%clk 0:01:37]} 24. Be3 {[%clk 0:00:37]}  Qc8 {[%clk 0:01:30]} 25. Qg4 {[%clk 0:00:26]}  N7f6 {[%clk 0:01:29]} 26. Qf3 {[%clk 0:00:21]}  Bb4 {[%clk 0:01:19]} 27. c3 {[%clk 0:00:19]}  Be7 {[%clk 0:01:18]} 28. Ng3 {[%clk 0:00:19]}  Ng7 {[%clk 0:01:03]} 29. Ng2 {[%clk 0:00:17]}  b5 {[%clk 0:01:02]} 30. axb5 {[%clk 0:00:11]}  cxb5 {[%clk 0:01:03]} 31. Qe2 {[%clk 0:00:11]}  b4 {[%clk 0:01:03]} 32. Rc1 {[%clk 0:00:06]}  Rc6 {[%clk 0:01:01]} 33. c4 {[%clk 0:00:06]}  Qxh3 {[%clk 0:01:00]} 34. Red1 {[%clk 0:00:05]}  Ng4 {[%clk 0:00:59]} 35. Nf1 {[%clk 0:00:06]}  Ne6 {[%clk 0:00:46]} 36. Rd3 {[%clk 0:00:05]}  Nxe3 {[%clk 0:00:45]} 37. Qxe3 {[%clk 0:00:04]}  Qxe3 {[%clk 0:00:44]} 38. Nfxe3 {[%clk 0:00:05]}  Kg7 {[%clk 0:00:40]} 39. Nd5 {[%clk 0:00:05]}  Bc5 {[%clk 0:00:38]} 40. b3 {[%clk 0:00:04]}  Nd4 {[%clk 0:00:37]} 41. Ra1 {[%clk 0:00:04]}  Ra8 {[%clk 0:00:36]} 42. Nge3 {[%clk 0:00:04]}  Ra7 {[%clk 0:00:28]} 43. Kg2 {[%clk 0:00:04]}  Rca6 {[%clk 0:00:28]} 44. Ng4 {[%clk 0:00:04]}  a4 {[%clk 0:00:25]} 45. Rh3 {[%clk 0:00:03]}  Ne6 {[%clk 0:00:08]} 46. Rah1 {[%clk 0:00:04]}  Ng5 {[%clk 0:00:07]} 47. Rh8 {[%clk 0:00:03]}  axb3 {[%clk 0:00:07]} 48. Rb8 {[%clk 0:00:03]}  Ra8 {[%clk 0:00:05]} 49. Rb7 {[%clk 0:00:02]}  b2 {[%clk 0:00:05]} 50. Nxe5 {[%clk 0:00:02]}  Bd4 {[%clk 0:00:05]} 0-1


[Site "https://www.chess.com"]

[Event "Titled Tuesday Blitz December 06 Late 2022"]
[White "Hernandez Jimenez, Alexander Andres"]
[Black "Pham, Khoi"]
[WhiteFideId "3900452"]
[BlackFideId "1054988"]
[WhiteElo "2098"]
[BlackElo "2479"]
[Result "0-1"]
[Round "03"]
[TimeControl "180+1"]
[Date "2022.12.07"]
[WhiteClock "0:00:41"]
[BlackClock "0:01:33"]

1. e4 {[%clk 0:02:50]}  e6 {[%clk 0:02:59]} 2. Nf3 {[%clk 0:02:49]}  d5 {[%clk 0:03:00]} 3. exd5 {[%clk 0:02:46]}  exd5 {[%clk 0:02:59]} 4. d4 {[%clk 0:02:44]}  Nc6 {[%clk 0:02:58]} 5. Bd3 {[%clk 0:02:40]}  Bd6 {[%clk 0:02:56]} 6. c3 {[%clk 0:02:37]}  Bg4 {[%clk 0:02:54]} 7. O-O {[%clk 0:02:37]}  Qd7 {[%clk 0:02:53]} 8. Re1+ {[%clk 0:02:37]}  Nge7 {[%clk 0:02:52]} 9. Nbd2 {[%clk 0:02:36]}  O-O {[%clk 0:02:43]} 10. Nf1 {[%clk 0:02:34]}  Rfe8 {[%clk 0:02:36]} 11. h3 {[%clk 0:02:32]}  Bh5 {[%clk 0:02:34]} 12. Ng3 {[%clk 0:02:26]}  Bxg3 {[%clk 0:02:27]} 13. fxg3 {[%clk 0:02:26]}  Bg6 {[%clk 0:02:28]} 14. Bf4 {[%clk 0:02:20]}  Bxd3 {[%clk 0:02:17]} 15. Qxd3 {[%clk 0:02:01]}  Nf5 {[%clk 0:02:17]} 16. g4 {[%clk 0:01:46]}  Nd6 {[%clk 0:02:16]} 17. Ne5 {[%clk 0:01:42]}  Nxe5 {[%clk 0:02:14]} 18. Rxe5 {[%clk 0:01:42]}  Rxe5 {[%clk 0:02:13]} 19. Bxe5 {[%clk 0:01:29]}  Ne4 {[%clk 0:02:12]} 20. Rf1 {[%clk 0:01:27]}  Re8 {[%clk 0:02:08]} 21. a3 {[%clk 0:01:23]}  c5 {[%clk 0:01:52]} 22. Bf4 {[%clk 0:01:07]}  c4 {[%clk 0:01:50]} 23. Qf3 {[%clk 0:01:04]}  Re6 {[%clk 0:01:48]} 24. Bc1 {[%clk 0:01:03]}  Rf6 {[%clk 0:01:44]} 25. Qd1 {[%clk 0:01:02]}  Qe6 {[%clk 0:01:40]} 26. Rxf6 {[%clk 0:01:01]}  Qxf6 {[%clk 0:01:41]} 27. Qf3 {[%clk 0:01:00]}  Qe6 {[%clk 0:01:38]} 28. Qf4 {[%clk 0:00:49]}  h6 {[%clk 0:01:36]} 29. Qf5 {[%clk 0:00:41]}  Qxf5 {[%clk 0:01:33]} 30. gxf5 {[%clk 0:00:41]}  Ng3 {[%clk 0:01:34]} 31. f6 {[%clk 0:00:41]}  Ne2+ {[%clk 0:01:33]} 0-1


[Site "https://www.chess.com"]

[Event "Titled Tuesday Blitz December 06 Late 2022"]
[White "Ismayil, Malak"]
[Black "Hoffmann, Asa"]
[WhiteFideId "13412604"]
[BlackFideId "2001470"]
[WhiteElo "1880"]
[BlackElo "2117"]
[Result "1-0"]
[Round "03"]
[TimeControl "180+1"]
[Date "2022.12.07"]
[WhiteClock "0:00:06"]
[BlackClock "0:00:11"]

1. e4 {[%clk 0:03:00]}  d6 {[%clk 0:02:54]} 2. d4 {[%clk 0:03:00]}  Nf6 {[%clk 0:02:51]} 3. Nc3 {[%clk 0:03:00]}  c6 {[%clk 0:02:50]} 4. g3 {[%clk 0:02:59]}  Nbd7 {[%clk 0:02:49]} 5. Bg2 {[%clk 0:03:00]}  e5 {[%clk 0:02:49]} 6. Nge2 {[%clk 0:03:00]}  Be7 {[%clk 0:02:49]} 7. O-O {[%clk 0:02:59]}  Qc7 {[%clk 0:02:49]} 8. Bg5 {[%clk 0:02:58]}  h6 {[%clk 0:02:48]} 9. Bxf6 {[%clk 0:02:52]}  Bxf6 {[%clk 0:02:47]} 10. d5 {[%clk 0:02:52]}  c5 {[%clk 0:02:44]} 11. a4 {[%clk 0:02:51]}  b6 {[%clk 0:02:43]} 12. Qd2 {[%clk 0:02:41]}  Ba6 {[%clk 0:02:42]} 13. Nb5 {[%clk 0:02:32]}  Bxb5 {[%clk 0:02:31]} 14. axb5 {[%clk 0:02:33]}  O-O {[%clk 0:02:27]} 15. c4 {[%clk 0:02:32]}  Qb7 {[%clk 0:02:20]} 16. Ra6 {[%clk 0:02:11]}  Nb8 {[%clk 0:02:19]} 17. Ra3 {[%clk 0:02:10]}  a5 {[%clk 0:02:19]} 18. Rfa1 {[%clk 0:02:11]}  Nd7 {[%clk 0:02:15]} 19. Rf1 {[%clk 0:02:08]}  Rae8 {[%clk 0:02:11]} 20. Kh1 {[%clk 0:02:07]}  Qc7 {[%clk 0:01:59]} 21. Bh3 {[%clk 0:02:04]}  Qd8 {[%clk 0:01:56]} 22. Nc3 {[%clk 0:01:57]}  Bg5 {[%clk 0:01:48]} 23. Qd1 {[%clk 0:01:51]}  Nf6 {[%clk 0:01:41]} 24. f4 {[%clk 0:01:34]}  exf4 {[%clk 0:01:38]} 25. gxf4 {[%clk 0:01:35]}  Bh4 {[%clk 0:01:37]} 26. Bg2 {[%clk 0:01:32]}  g6 {[%clk 0:01:25]} 27. b3 {[%clk 0:01:31]}  Nh5 {[%clk 0:01:21]} 28. Ra2 {[%clk 0:01:15]}  Bf6 {[%clk 0:01:19]} 29. Na4 {[%clk 0:01:10]}  Bd4 {[%clk 0:01:17]} 30. Qg4 {[%clk 0:01:04]}  Kh7 {[%clk 0:01:06]} 31. Re2 {[%clk 0:00:49]}  Qf6 {[%clk 0:01:04]} 32. Nxb6 {[%clk 0:00:46]}  Re7 {[%clk 0:01:01]} 33. Nd7 {[%clk 0:00:45]}  Rxd7 {[%clk 0:01:00]} 34. Qxd7 {[%clk 0:00:46]}  Nxf4 {[%clk 0:00:56]} 35. Qg4 {[%clk 0:00:45]}  g5 {[%clk 0:00:51]} 36. Ra2 {[%clk 0:00:38]}  Bc3 {[%clk 0:00:48]} 37. Bh3 {[%clk 0:00:29]}  Kg7 {[%clk 0:00:44]} 38. Raf2 {[%clk 0:00:22]}  Be5 {[%clk 0:00:39]} 39. Qd7 {[%clk 0:00:08]}  Rd8 {[%clk 0:00:36]} 40. Qc7 {[%clk 0:00:08]}  Re8 {[%clk 0:00:34]} 41. b6 {[%clk 0:00:07]}  Bd4 {[%clk 0:00:28]} 42. Rxf4 {[%clk 0:00:05]}  gxf4 {[%clk 0:00:28]} 43. b7 {[%clk 0:00:05]}  Qe5 {[%clk 0:00:25]} 44. b8=Q {[%clk 0:00:03]}  Qxe4+ {[%clk 0:00:24]} 45. Bg2 {[%clk 0:00:04]}  f3 {[%clk 0:00:23]} 46. Bxf3 {[%clk 0:00:04]}  Qxf3+ {[%clk 0:00:20]} 47. Rxf3 {[%clk 0:00:04]}  Re1+ {[%clk 0:00:19]} 48. Kg2 {[%clk 0:00:05]}  Rg1+ {[%clk 0:00:19]} 49. Kh3 {[%clk 0:00:06]}  Bf6 {[%clk 0:00:17]} 50. Rxf6 {[%clk 0:00:04]}  Kxf6 {[%clk 0:00:16]} 51. Qxd6+ {[%clk 0:00:04]}  Kf5 {[%clk 0:00:16]} 52. Qf4+ {[%clk 0:00:04]}  Kg6 {[%clk 0:00:15]} 53. Qg8+ {[%clk 0:00:04]}  Kh5 {[%clk 0:00:14]} 54. Qgg4+ {[%clk 0:00:05]}  Rxg4 {[%clk 0:00:11]} 55. Qxg4# {[%clk 0:00:06]} 1-0


[Site "https://www.chess.com"]

[Event "Titled Tuesday Blitz December 06 Late 2022"]
[White "Jarmula, Lukasz"]
[Black "Ibarra Jerez, Jose Carlos"]
[WhiteFideId "1160664"]
[BlackFideId "2226332"]
[WhiteElo "2587"]
[BlackElo "2817"]
[Result "0-1"]
[Round "03"]
[TimeControl "180+1"]
[Date "2022.12.07"]
[WhiteClock "0:00:05"]
[BlackClock "0:00:36"]

1. e4 {[%clk 0:03:00]}  c5 {[%clk 0:02:59]} 2. Nf3 {[%clk 0:02:59]}  Nc6 {[%clk 0:02:58]} 3. Bb5 {[%clk 0:02:58]}  e6 {[%clk 0:02:59]} 4. O-O {[%clk 0:02:58]}  Nge7 {[%clk 0:02:58]} 5. d4 {[%clk 0:02:58]}  cxd4 {[%clk 0:02:58]} 6. Nxd4 {[%clk 0:02:59]}  Ng6 {[%clk 0:02:58]} 7. Nxc6 {[%clk 0:02:51]}  bxc6 {[%clk 0:02:58]} 8. Bd3 {[%clk 0:02:46]}  d5 {[%clk 0:02:54]} 9. c4 {[%clk 0:02:46]}  dxc4 {[%clk 0:02:04]} 10. Bxc4 {[%clk 0:02:44]}  Qh4 {[%clk 0:02:01]} 11. Nd2 {[%clk 0:02:29]}  Bc5 {[%clk 0:01:57]} 12. Qc2 {[%clk 0:02:21]}  O-O {[%clk 0:01:55]} 13. Nf3 {[%clk 0:02:16]}  Qe7 {[%clk 0:01:54]} 14. Bg5 {[%clk 0:02:12]}  f6 {[%clk 0:01:53]} 15. Bd2 {[%clk 0:02:11]}  Bd6 {[%clk 0:01:51]} 16. Bc3 {[%clk 0:02:01]}  Kh8 {[%clk 0:01:49]} 17. e5 {[%clk 0:01:55]}  fxe5 {[%clk 0:01:50]} 18. Rfe1 {[%clk 0:01:50]}  Rxf3 {[%clk 0:01:40]} 19. gxf3 {[%clk 0:01:49]}  Nh4 {[%clk 0:01:40]} 20. Kh1 {[%clk 0:01:24]}  c5 {[%clk 0:01:40]} 21. Bd3 {[%clk 0:00:55]}  Nxf3 {[%clk 0:01:28]} 22. Re3 {[%clk 0:00:42]}  Bb7 {[%clk 0:01:16]} 23. Be4 {[%clk 0:00:41]}  Qh4 {[%clk 0:01:09]} 24. Bxf3 {[%clk 0:00:21]}  e4 {[%clk 0:01:06]} 25. Bxg7+ {[%clk 0:00:16]}  Kg8 {[%clk 0:00:56]} 26. Be5 {[%clk 0:00:10]}  Bxe5 {[%clk 0:00:54]} 27. Rg1+ {[%clk 0:00:09]}  Kh8 {[%clk 0:00:48]} 28. Rg3 {[%clk 0:00:09]}  Bxg3 {[%clk 0:00:41]} 29. fxg3 {[%clk 0:00:06]}  exf3 {[%clk 0:00:36]} 30. gxh4 {[%clk 0:00:05]}  f2+ {[%clk 0:00:36]} 0-1


[Site "https://www.chess.com"]

[Event "Titled Tuesday Blitz December 06 Late 2022"]
[White "Kavutskiy, Konstantin"]
[Black "Bilan, Danila"]
[WhiteFideId "2026384"]
[BlackFideId "24161918"]
[WhiteElo "2386"]
[BlackElo "2182"]
[Result "0-1"]
[Round "03"]
[TimeControl "180+1"]
[Date "2022.12.07"]
[WhiteClock "0:00:04"]
[BlackClock "0:00:11"]

1. d4 {[%clk 0:03:00]}  d5 {[%clk 0:02:59]} 2. c4 {[%clk 0:03:00]}  c6 {[%clk 0:02:59]} 3. Nf3 {[%clk 0:03:00]}  Nf6 {[%clk 0:03:00]} 4. Nc3 {[%clk 0:03:00]}  e6 {[%clk 0:03:00]} 5. e3 {[%clk 0:02:57]}  Nbd7 {[%clk 0:02:58]} 6. b3 {[%clk 0:02:57]}  Bd6 {[%clk 0:02:48]} 7. Bb2 {[%clk 0:02:56]}  O-O {[%clk 0:02:47]} 8. Qc2 {[%clk 0:02:55]}  Qe7 {[%clk 0:02:40]} 9. Be2 {[%clk 0:02:52]}  dxc4 {[%clk 0:02:36]} 10. bxc4 {[%clk 0:02:49]}  e5 {[%clk 0:02:36]} 11. O-O {[%clk 0:02:48]}  e4 {[%clk 0:02:31]} 12. Nd2 {[%clk 0:02:46]}  Re8 {[%clk 0:02:30]} 13. a4 {[%clk 0:02:30]}  Nf8 {[%clk 0:02:15]} 14. a5 {[%clk 0:02:26]}  Ng6 {[%clk 0:02:03]} 15. a6 {[%clk 0:02:24]}  b6 {[%clk 0:02:00]} 16. c5 {[%clk 0:02:14]}  bxc5 {[%clk 0:01:38]} 17. dxc5 {[%clk 0:02:15]}  Be5 {[%clk 0:01:29]} 18. Nc4 {[%clk 0:02:10]}  Qxc5 {[%clk 0:01:19]} 19. Ba3 {[%clk 0:02:04]}  Bxh2+ {[%clk 0:00:57]} 20. Kxh2 {[%clk 0:02:01]}  Qg5 {[%clk 0:00:54]} 21. Nd6 {[%clk 0:01:50]}  Nh4 {[%clk 0:00:23]} 22. g3 {[%clk 0:00:26]}  Ng4+ {[%clk 0:00:23]} 23. Bxg4 {[%clk 0:00:14]}  Qxg4 {[%clk 0:00:22]} 24. gxh4 {[%clk 0:00:14]}  Qxh4+ {[%clk 0:00:17]} 25. Kg1 {[%clk 0:00:14]}  Qg4+ {[%clk 0:00:18]} 26. Kh2 {[%clk 0:00:14]}  Qh3+ {[%clk 0:00:18]} 27. Kg1 {[%clk 0:00:14]}  Qg4+ {[%clk 0:00:15]} 28. Kh2 {[%clk 0:00:14]}  Re6 {[%clk 0:00:15]} 29. Nxf7 {[%clk 0:00:09]}  Kxf7 {[%clk 0:00:12]} 30. Qb3 {[%clk 0:00:09]}  Ke8 {[%clk 0:00:10]} 31. Qxe6+ {[%clk 0:00:03]}  Bxe6 {[%clk 0:00:11]} 32. Rg1 {[%clk 0:00:04]}  Qh3# {[%clk 0:00:11]} 0-1


[Site "https://www.chess.com"]